[Event "Early-Titled-Tuesday-Blitz-April-16-2024"]
[Site "Chess.com"]
[Date "2024.04.16"]
[Round "1"]
[White "Hercog"]
[Black "crazy_but_lazy"]
[Result "1-0"]
[WhiteElo "2093"]
[BlackElo "2549"]
[TimeControl "180+1"]
[EndTime "8:08:10 PDT"]
[Termination "Hercog won by resignation"]

1. d4 {[%clk 0:02:59.2]} 1... d5 {[%clk 0:02:59.3]} 2. c4 {[%clk 0:02:59.4]}
2... e6 {[%clk 0:02:58.9]} 3. Nc3 {[%clk 0:02:59.8]} 3... Nf6 {[%clk 0:02:58.2]}
4. cxd5 {[%clk 0:03:00.2]} 4... Nxd5 {[%clk 0:02:57.4]} 5. e4 {[%clk 0:03:00.4]}
5... Nxc3 {[%clk 0:02:57.7]} 6. bxc3 {[%clk 0:03:00.8]} 6... c5 {[%clk
0:02:58.3]} 7. Nf3 {[%clk 0:03:01.1]} 7... cxd4 {[%clk 0:02:57.8]} 8. cxd4
{[%clk 0:03:01.6]} 8... Bb4+ {[%clk 0:02:58.3]} 9. Bd2 {[%clk 0:03:02.2]} 9...
Bxd2+ {[%clk 0:02:58.9]} 10. Qxd2 {[%clk 0:03:02.8]} 10... Nd7 {[%clk
0:02:59.6]} 11. Bc4 {[%clk 0:03:02.9]} 11... b6 {[%clk 0:02:59.9]} 12. O-O
{[%clk 0:03:03]} 12... Bb7 {[%clk 0:02:59.9]} 13. Rfe1 {[%clk 0:03:03.3]} 13...
O-O {[%clk 0:03:00.5]} 14. Rad1 {[%clk 0:03:03.1]} 14... Rc8 {[%clk 0:02:47.4]}
15. Bd3 {[%clk 0:03:01.6]} 15... Re8 {[%clk 0:02:36.1]} 16. h3 {[%clk
0:02:59.5]} 16... Qc7 {[%clk 0:02:34.9]} 17. Qg5 {[%clk 0:02:52.7]} 17... h6
{[%clk 0:02:25.6]} 18. Qh4 {[%clk 0:02:52.7]} 18... Qd8 {[%clk 0:01:51]} 19. Qg3
{[%clk 0:02:52.5]} 19... Qc7 {[%clk 0:01:50.8]} 20. Qh4 {[%clk 0:02:49.6]} 20...
Qd8 {[%clk 0:01:45.9]} 21. Qg3 {[%clk 0:02:26.1]} 21... Nf6 {[%clk 0:01:46.2]}
22. d5 {[%clk 0:02:20.3]} 22... exd5 {[%clk 0:01:38.9]} 23. e5 {[%clk
0:02:20.5]} 23... Nd7 {[%clk 0:01:39.1]} 24. Nd4 {[%clk 0:02:18.1]} 24... Qg5
{[%clk 0:01:36.3]} 25. Qxg5 {[%clk 0:02:02]} 25... hxg5 {[%clk 0:01:37.2]} 26.
Bf5 {[%clk 0:02:01.2]} 26... Rcd8 {[%clk 0:01:31.9]} 27. e6 {[%clk 0:01:58.6]}
27... Nc5 {[%clk 0:01:15.9]} 28. e7 {[%clk 0:01:57.8]} 28... Rb8 {[%clk
0:01:15.9]} 29. Nb5 {[%clk 0:01:57.9]} 29... Ne4 {[%clk 0:01:09.7]} 30. f3
{[%clk 0:01:56.5]} 30... Rxe7 {[%clk 0:00:49.9]} 31. fxe4 {[%clk 0:01:56.4]}
31... dxe4 {[%clk 0:00:50.8]} 32. Nd6 {[%clk 0:01:51.4]} 32... Bc6 {[%clk
0:00:51.2]} 33. Bxe4 {[%clk 0:01:47.3]} 33... Bxe4 {[%clk 0:00:39.4]} 34. Rxe4
{[%clk 0:01:47.3]} 34... Rd7 {[%clk 0:00:39.7]} 35. Red4 {[%clk 0:01:43]} 35...
Rc7 {[%clk 0:00:30.6]} 36. R1d2 {[%clk 0:01:38.9]} 36... b5 {[%clk 0:00:25.4]}
37. Ne4 {[%clk 0:01:34.8]} 37... f6 {[%clk 0:00:22]} 38. Rd8+ {[%clk 0:01:34.8]}
38... Rxd8 {[%clk 0:00:21.4]} 39. Rxd8+ {[%clk 0:01:35.2]} 39... Kf7 {[%clk
0:00:21.9]} 40. Kf2 {[%clk 0:01:34.8]} 40... Ke6 {[%clk 0:00:14.7]} 41. Kf3
{[%clk 0:01:33.1]} 41... Ke5 {[%clk 0:00:09.6]} 42. Rb8 {[%clk 0:01:31.3]} 42...
a6 {[%clk 0:00:08]} 43. Re8+ {[%clk 0:01:29.7]} 43... Kd4 {[%clk 0:00:07.9]} 44.
Rd8+ {[%clk 0:01:27.1]} 44... Kc4 {[%clk 0:00:08.4]} 45. Rd1 {[%clk 0:01:18.4]}
45... Kb4 {[%clk 0:00:08.6]} 46. Rd2 {[%clk 0:01:17.4]} 46... a5 {[%clk
0:00:08.7]} 47. Ke3 {[%clk 0:01:16.6]} 47... Re7 {[%clk 0:00:07.3]} 48. Kd3
{[%clk 0:01:15.8]} 48... a4 {[%clk 0:00:04.6]} 49. Nc3 {[%clk 0:01:09.3]} 49...
Rd7+ {[%clk 0:00:03.1]} 50. Kc2 {[%clk 0:01:09.7]} 50... Ra7 {[%clk 0:00:03]}
51. Rd5 {[%clk 0:01:09.3]} 51... Rb7 {[%clk 0:00:03.5]} 52. Kb2 {[%clk 0:01:08]}
52... a3+ {[%clk 0:00:03.5]} 53. Kc2 {[%clk 0:01:08.4]} 53... Ka5 {[%clk
0:00:03.1]} 54. Kb3 {[%clk 0:01:07.9]} 54... Re7 {[%clk 0:00:02.3]} 55. Rxb5+
{[%clk 0:01:07.4]} 55... Ka6 {[%clk 0:00:02.7]} 56. Rd5 {[%clk 0:01:05.3]} 56...
Re3 {[%clk 0:00:02.5]} 57. Rd2 {[%clk 0:01:00.6]} 57... Rg3 {[%clk 0:00:02.8]}
58. Kb4 {[%clk 0:01:00.7]} 58... Kb6 {[%clk 0:00:02.7]} 59. Nb5 {[%clk
0:01:00.8]} 59... g4 {[%clk 0:00:02.2]} 60. hxg4 {[%clk 0:01:00]} 60... Rxg4+
{[%clk 0:00:03.1]} 61. Nd4 {[%clk 0:01:00.2]} 61... Kc7 {[%clk 0:00:02.8]} 62.
Kxa3 {[%clk 0:01:00.2]} 62... Kd6 {[%clk 0:00:02.3]} 63. Kb3 {[%clk 0:00:59.8]}
63... Ke5 {[%clk 0:00:02.4]} 64. Nf3+ {[%clk 0:01:00.1]} 64... Kf4 {[%clk
0:00:02.6]} 65. a4 {[%clk 0:01:00.3]} 65... Rg3 {[%clk 0:00:01.7]} 66. a5 {[%clk
0:01:00]} 66... g5 {[%clk 0:00:02.3]} 67. Kb4 {[%clk 0:00:57.8]} 67... g4 {[%clk
0:00:02.7]} 68. Nd4 {[%clk 0:00:57.9]} 68... Ke3 {[%clk 0:00:02.7]} 69. Nf5+
{[%clk 0:00:56.6]} 69... Kxd2 {[%clk 0:00:03.1]} 70. Nxg3 {[%clk 0:00:57.1]} 1-0

[Event "Early-Titled-Tuesday-Blitz-April-16-2024"]
[Site "Chess.com"]
[Date "2024.04.16"]
[Round "1"]
[White "Aygehovit1992"]
[Black "janhelmer03"]
[Result "1-0"]
[WhiteElo "2744"]
[BlackElo "2428"]
[TimeControl "180+1"]
[EndTime "8:08:11 PDT"]
[Termination "Aygehovit1992 won by resignation"]

1. e4 {[%clk 0:03:00.9]} 1... c5 {[%clk 0:02:56.8]} 2. Nf3 {[%clk 0:03:00.8]}
2... d6 {[%clk 0:02:56.6]} 3. d4 {[%clk 0:03:01.3]} 3... cxd4 {[%clk 0:02:57.4]}
4. Nxd4 {[%clk 0:03:02.1]} 4... Nf6 {[%clk 0:02:58]} 5. Nc3 {[%clk 0:03:02.8]}
5... g6 {[%clk 0:02:58.6]} 6. Be3 {[%clk 0:03:02]} 6... Bg7 {[%clk 0:02:58.8]}
7. f3 {[%clk 0:03:02.7]} 7... O-O {[%clk 0:02:59.2]} 8. Qd2 {[%clk 0:03:03.4]}
8... Nc6 {[%clk 0:02:59.7]} 9. O-O-O {[%clk 0:03:03.8]} 9... d5 {[%clk 0:03:00]}
10. exd5 {[%clk 0:03:04.4]} 10... Nxd5 {[%clk 0:03:00.1]} 11. Nxc6 {[%clk
0:03:04.9]} 11... bxc6 {[%clk 0:02:59.6]} 12. Bd4 {[%clk 0:03:05.6]} 12... e5
{[%clk 0:02:59.6]} 13. Bc5 {[%clk 0:03:05.5]} 13... Re8 {[%clk 0:03:00.3]} 14.
Bc4 {[%clk 0:03:01.1]} 14... Qh4 {[%clk 0:02:23.4]} 15. Nxd5 {[%clk 0:02:16.9]}
15... Qxc4 {[%clk 0:02:22]} 16. Ne7+ {[%clk 0:02:16.8]} 16... Rxe7 {[%clk
0:02:18.7]} 17. Bxe7 {[%clk 0:02:13.8]} 17... Bf5 {[%clk 0:01:52.4]} 18. Kb1
{[%clk 0:02:01]} 18... h5 {[%clk 0:01:43.2]} 19. b3 {[%clk 0:02:00.2]} 19... Qb5
{[%clk 0:01:37.8]} 20. Qc3 {[%clk 0:01:20.7]} 20... a5 {[%clk 0:00:46.6]} 21. a4
{[%clk 0:01:14.9]} 21... Qb7 {[%clk 0:00:44.5]} 22. Rd8+ {[%clk 0:01:13.6]}
22... Rxd8 {[%clk 0:00:41.8]} 23. Bxd8 {[%clk 0:01:14.5]} 23... Qd7 {[%clk
0:00:37.2]} 24. Bg5 {[%clk 0:00:52.5]} 24... Qd6 {[%clk 0:00:27.7]} 25. Ka2
{[%clk 0:00:30.8]} 25... e4 {[%clk 0:00:26.9]} 26. Qd2 {[%clk 0:00:30.8]} 26...
Qe6 {[%clk 0:00:19.5]} 27. fxe4 {[%clk 0:00:28.3]} 27... Qe5 {[%clk 0:00:18.6]}
28. c3 {[%clk 0:00:28.2]} 28... Be6 {[%clk 0:00:18.9]} 29. Re1 {[%clk
0:00:19.2]} 29... c5 {[%clk 0:00:14.5]} 30. Bf4 {[%clk 0:00:19.3]} 30... Qf6
{[%clk 0:00:11.1]} 31. e5 {[%clk 0:00:19.4]} 31... Qf5 {[%clk 0:00:10.8]} 32. c4
{[%clk 0:00:19.8]} 32... g5 {[%clk 0:00:09]} 33. Bxg5 {[%clk 0:00:20]} 33...
Bxe5 {[%clk 0:00:09.6]} 34. Bh6 {[%clk 0:00:17.2]} 34... Kh7 {[%clk 0:00:08.9]}
35. Be3 {[%clk 0:00:16.9]} 35... Bg7 {[%clk 0:00:07.8]} 36. Bg1 {[%clk 0:00:08]}
36... Qf6 {[%clk 0:00:05.1]} 37. Bxc5 {[%clk 0:00:07.8]} 37... Bf5 {[%clk
0:00:05.1]} 38. Ba3 {[%clk 0:00:07.3]} 38... Qb6 {[%clk 0:00:02.9]} 39. Bb2
{[%clk 0:00:07]} 39... Bf8 {[%clk 0:00:03]} 40. Qc3 {[%clk 0:00:06.8]} 40... f6
{[%clk 0:00:01.7]} 41. Qxf6 {[%clk 0:00:06.6]} 41... Qxf6 {[%clk 0:00:02.3]} 42.
Bxf6 {[%clk 0:00:07.4]} 42... Bb4 {[%clk 0:00:03.2]} 43. Rf1 {[%clk 0:00:05.7]}
43... Kg6 {[%clk 0:00:04.1]} 44. Bb2 {[%clk 0:00:05.4]} 44... Bd3 {[%clk
0:00:04.6]} 45. Rf2 {[%clk 0:00:05.5]} 45... Be4 {[%clk 0:00:04.6]} 46. g3
{[%clk 0:00:05.5]} 46... Bc5 {[%clk 0:00:04.8]} 47. Re2 {[%clk 0:00:05.6]} 47...
Kf5 {[%clk 0:00:05.5]} 48. Re1 {[%clk 0:00:05.1]} 48... Bb4 {[%clk 0:00:05.2]}
49. Rf1+ {[%clk 0:00:05.6]} 49... Kg4 {[%clk 0:00:05.3]} 50. Rc1 {[%clk
0:00:06]} 50... Kh3 {[%clk 0:00:04.3]} 51. Bc3 {[%clk 0:00:06.5]} 51... Kxh2
{[%clk 0:00:03.3]} 52. Bxb4 {[%clk 0:00:06.7]} 52... axb4 {[%clk 0:00:04.2]} 53.
c5 {[%clk 0:00:07.3]} 53... Kxg3 {[%clk 0:00:04.6]} 54. c6 {[%clk 0:00:07.4]}
54... h4 {[%clk 0:00:04.2]} 55. c7 {[%clk 0:00:07.9]} 55... Bb7 {[%clk 0:00:05]}
56. c8=Q {[%clk 0:00:08.1]} 56... Bxc8 {[%clk 0:00:05]} 57. Rxc8 {[%clk
0:00:09]} 57... h3 {[%clk 0:00:05.8]} 58. Rg8+ {[%clk 0:00:09.7]} 1-0

[Event "Early-Titled-Tuesday-Blitz-April-16-2024"]
[Site "Chess.com"]
[Date "2024.04.16"]
[Round "1"]
[White "AlexPapasimakopoulos"]
[Black "Tol_Tol"]
[Result "1/2-1/2"]
[WhiteElo "2715"]
[BlackElo "2429"]
[TimeControl "180+1"]
[EndTime "8:08:12 PDT"]
[Termination "Game drawn by repetition"]

1. d4 {[%clk 0:02:25.4]} 1... Nf6 {[%clk 0:02:58.4]} 2. c4 {[%clk 0:02:23.9]}
2... g6 {[%clk 0:02:56.1]} 3. Nc3 {[%clk 0:02:21.5]} 3... Bg7 {[%clk 0:02:54.5]}
4. Bg5 {[%clk 0:02:17.3]} 4... O-O {[%clk 0:02:54.3]} 5. Nf3 {[%clk 0:02:15.5]}
5... d6 {[%clk 0:02:54.1]} 6. e3 {[%clk 0:02:13.2]} 6... c5 {[%clk 0:02:44.8]}
7. d5 {[%clk 0:02:11.8]} 7... h6 {[%clk 0:02:41.9]} 8. Bh4 {[%clk 0:02:11.2]}
8... e6 {[%clk 0:02:41.9]} 9. Be2 {[%clk 0:02:09.4]} 9... exd5 {[%clk
0:02:42.1]} 10. cxd5 {[%clk 0:02:10.3]} 10... a6 {[%clk 0:02:41.3]} 11. a4
{[%clk 0:02:09.6]} 11... Bg4 {[%clk 0:02:38]} 12. Nd2 {[%clk 0:01:56.1]} 12...
Bxe2 {[%clk 0:02:34.9]} 13. Qxe2 {[%clk 0:01:57]} 13... Nbd7 {[%clk 0:02:32.8]}
14. Nc4 {[%clk 0:01:53.3]} 14... Nb6 {[%clk 0:02:27.9]} 15. Rd1 {[%clk
0:01:42.9]} 15... Nxc4 {[%clk 0:02:26.3]} 16. Qxc4 {[%clk 0:01:43.8]} 16... Re8
{[%clk 0:02:17.1]} 17. O-O {[%clk 0:01:40.4]} 17... Qa5 {[%clk 0:02:05.8]} 18.
Bg3 {[%clk 0:01:30.8]} 18... Qb4 {[%clk 0:01:43.2]} 19. b3 {[%clk 0:01:15.4]}
19... Nh5 {[%clk 0:01:34]} 20. Qxb4 {[%clk 0:01:08.1]} 20... cxb4 {[%clk
0:01:32.6]} 21. Na2 {[%clk 0:01:02.4]} 21... Nxg3 {[%clk 0:01:31.8]} 22. hxg3
{[%clk 0:01:03.1]} 22... a5 {[%clk 0:01:26.6]} 23. Rc1 {[%clk 0:01:03.1]} 23...
Rac8 {[%clk 0:01:26.5]} 24. Rfd1 {[%clk 0:01:00.8]} 24... Bb2 {[%clk 0:01:22.3]}
25. Rb1 {[%clk 0:00:49.3]} 25... Rc2 {[%clk 0:01:19.6]} 26. Nc1 {[%clk 0:00:49]}
26... Bxc1 {[%clk 0:01:10.8]} 27. Rdxc1 {[%clk 0:00:47.2]} 27... Rec8 {[%clk
0:01:11.5]} 28. Rxc2 {[%clk 0:00:28.8]} 28... Rxc2 {[%clk 0:01:11.4]} 29. g4
{[%clk 0:00:28.5]} 29... Kg7 {[%clk 0:01:08.6]} 30. Kf1 {[%clk 0:00:28.5]} 30...
Kf6 {[%clk 0:01:08.5]} 31. f4 {[%clk 0:00:28.8]} 31... h5 {[%clk 0:00:54.6]} 32.
gxh5 {[%clk 0:00:24.2]} 32... gxh5 {[%clk 0:00:54.1]} 33. e4 {[%clk 0:00:23.6]}
33... h4 {[%clk 0:00:51.3]} 34. Rd1 {[%clk 0:00:21.6]} 34... Rc3 {[%clk
0:00:47.3]} 35. e5+ {[%clk 0:00:20.4]} 35... Ke7 {[%clk 0:00:47.2]} 36. Rb1
{[%clk 0:00:13.5]} 36... Rd3 {[%clk 0:00:42.4]} 37. Ke2 {[%clk 0:00:12.9]} 37...
Rxd5 {[%clk 0:00:41.7]} 38. exd6+ {[%clk 0:00:12.9]} 38... Kxd6 {[%clk
0:00:27.7]} 39. Rh1 {[%clk 0:00:13.4]} 39... Rh5 {[%clk 0:00:20.1]} 40. g4
{[%clk 0:00:12.5]} 40... Rh8 {[%clk 0:00:18.2]} 41. Rh3 {[%clk 0:00:11.8]} 41...
Kd5 {[%clk 0:00:17.4]} 42. Kd3 {[%clk 0:00:12]} 42... Kc5 {[%clk 0:00:14.5]} 43.
g5 {[%clk 0:00:09.6]} 43... b5 {[%clk 0:00:14.7]} 44. axb5 {[%clk 0:00:08.6]}
44... Kxb5 {[%clk 0:00:14.8]} 45. f5 {[%clk 0:00:08.6]} 45... a4 {[%clk
0:00:14.8]} 46. bxa4+ {[%clk 0:00:08.9]} 46... Kxa4 {[%clk 0:00:15.4]} 47. Kc2
{[%clk 0:00:08.2]} 47... Rh5 {[%clk 0:00:14.5]} 48. g6 {[%clk 0:00:06.6]} 48...
fxg6 {[%clk 0:00:14.9]} 49. fxg6 {[%clk 0:00:07.5]} 49... Rg5 {[%clk 0:00:13.3]}
50. Rxh4 {[%clk 0:00:07.8]} 50... Rg2+ {[%clk 0:00:13.7]} 51. Kb1 {[%clk
0:00:05.2]} 51... Rxg6 {[%clk 0:00:14.6]} 52. Rh3 {[%clk 0:00:05.1]} 52... Rg1+
{[%clk 0:00:10.8]} 53. Kb2 {[%clk 0:00:05.1]} 53... Rg2+ {[%clk 0:00:11.2]} 54.
Kb1 {[%clk 0:00:05.6]} 54... Rf2 {[%clk 0:00:09.8]} 55. Rg3 {[%clk 0:00:05.5]}
55... Rh2 {[%clk 0:00:09.7]} 56. Rf3 {[%clk 0:00:05.8]} 56... Rg2 {[%clk
0:00:09.7]} 57. Rh3 {[%clk 0:00:06.1]} 57... Rf2 {[%clk 0:00:10]} 58. Rg3 {[%clk
0:00:06.4]} 58... Rh2 {[%clk 0:00:10.3]} 59. Rf3 {[%clk 0:00:06.8]} 59... Rg2
{[%clk 0:00:10.6]} 60. Rh3 {[%clk 0:00:07.4]} 1/2-1/2

[Event "Early-Titled-Tuesday-Blitz-April-16-2024"]
[Site "Chess.com"]
[Date "2024.04.16"]
[Round "1"]
[White "alexrustemov"]
[Black "Klendi"]
[Result "1-0"]
[WhiteElo "2847"]
[BlackElo "2476"]
[TimeControl "180+1"]
[EndTime "8:08:13 PDT"]
[Termination "alexrustemov won by resignation"]

1. d4 {[%clk 0:03:00.9]} 1... d5 {[%clk 0:03:00]} 2. c4 {[%clk 0:03:01.2]} 2...
c6 {[%clk 0:03:00.1]} 3. Nc3 {[%clk 0:03:01.6]} 3... Nf6 {[%clk 0:03:00.2]} 4.
e3 {[%clk 0:03:02.1]} 4... e6 {[%clk 0:02:59.9]} 5. Nf3 {[%clk 0:03:02.3]} 5...
Nbd7 {[%clk 0:02:59.4]} 6. Qc2 {[%clk 0:03:02.9]} 6... Bd6 {[%clk 0:02:58.9]} 7.
Bd2 {[%clk 0:03:03.3]} 7... O-O {[%clk 0:02:56]} 8. O-O-O {[%clk 0:03:03.8]}
8... e5 {[%clk 0:02:55.4]} 9. cxd5 {[%clk 0:03:03.5]} 9... cxd5 {[%clk
0:02:52.9]} 10. Nb5 {[%clk 0:03:03.9]} 10... Bb8 {[%clk 0:02:51.4]} 11. dxe5
{[%clk 0:03:03.9]} 11... Nxe5 {[%clk 0:02:50.3]} 12. Bc3 {[%clk 0:03:04.3]}
12... Nc6 {[%clk 0:02:34.9]} 13. Bd3 {[%clk 0:02:55.9]} 13... Bg4 {[%clk
0:02:30.1]} 14. Kb1 {[%clk 0:02:35.9]} 14... a6 {[%clk 0:02:21.9]} 15. Nbd4
{[%clk 0:02:34.8]} 15... Nxd4 {[%clk 0:02:19]} 16. Bxd4 {[%clk 0:02:33.7]} 16...
Bd6 {[%clk 0:02:18.9]} 17. Bxf6 {[%clk 0:02:25.6]} 17... Qxf6 {[%clk 0:02:17.2]}
18. Bxh7+ {[%clk 0:02:26.5]} 18... Kh8 {[%clk 0:02:16.7]} 19. Bd3 {[%clk
0:02:20.8]} 19... Rac8 {[%clk 0:02:15.2]} 20. Qe2 {[%clk 0:02:16.9]} 20... b5
{[%clk 0:02:00.7]} 21. h3 {[%clk 0:02:16.5]} 21... Bh5 {[%clk 0:01:59.8]} 22. g4
{[%clk 0:02:05.7]} 22... Bg6 {[%clk 0:01:59.2]} 23. Nd4 {[%clk 0:02:06.3]} 23...
Rc4 {[%clk 0:01:53.2]} 24. Qf3 {[%clk 0:01:59.9]} 24... Bxd3+ {[%clk 0:01:25]}
25. Rxd3 {[%clk 0:01:59.2]} 25... Be5 {[%clk 0:01:20.1]} 26. Qxf6 {[%clk
0:01:57.9]} 26... Bxf6 {[%clk 0:01:19.8]} 27. Rhd1 {[%clk 0:01:51.5]} 27... Rfc8
{[%clk 0:01:18.6]} 28. Ne2 {[%clk 0:01:46.9]} 28... Rb4 {[%clk 0:01:16.1]} 29.
R3d2 {[%clk 0:01:34.3]} 29... g6 {[%clk 0:01:13.5]} 30. Nf4 {[%clk 0:01:33.8]}
30... Bg7 {[%clk 0:01:02.3]} 31. Nxd5 {[%clk 0:01:32]} 31... Re4 {[%clk
0:01:01.2]} 32. f3 {[%clk 0:01:28]} 32... Re5 {[%clk 0:01:00.6]} 33. e4 {[%clk
0:01:28]} 33... Bf8 {[%clk 0:00:58.2]} 34. Rc2 {[%clk 0:01:27.6]} 34... Rd8
{[%clk 0:00:57.4]} 35. Rc6 {[%clk 0:01:25.1]} 35... a5 {[%clk 0:00:54.5]} 36.
Rb6 {[%clk 0:01:21.9]} 36... b4 {[%clk 0:00:53.6]} 37. Ra6 {[%clk 0:01:21.1]}
37... f5 {[%clk 0:00:52]} 38. Rd4 {[%clk 0:00:40.2]} 38... fxe4 {[%clk
0:00:48.5]} 39. fxe4 {[%clk 0:00:41.1]} 39... Bg7 {[%clk 0:00:47]} 40. Rxa5
{[%clk 0:00:35.5]} 40... Ree8 {[%clk 0:00:46.5]} 41. Rc4 {[%clk 0:00:34.8]}
41... Rf8 {[%clk 0:00:46.2]} 42. Rxb4 {[%clk 0:00:22.9]} 42... Rc8 {[%clk
0:00:43.3]} 43. a4 {[%clk 0:00:20.6]} 43... Rf3 {[%clk 0:00:38.5]} 44. Ka2
{[%clk 0:00:20.5]} 44... Rxh3 {[%clk 0:00:38.1]} 45. Rab5 {[%clk 0:00:20.3]}
45... Kh7 {[%clk 0:00:37.4]} 46. Rb7 {[%clk 0:00:19.8]} 46... Rc2 {[%clk
0:00:35.8]} 47. Rc7 {[%clk 0:00:18.6]} 47... Rd2 {[%clk 0:00:32.9]} 48. Rbb7
{[%clk 0:00:18.1]} 48... Kh6 {[%clk 0:00:19.7]} 49. Rxg7 {[%clk 0:00:17.4]}
49... Kg5 {[%clk 0:00:20.4]} 50. Rb6 {[%clk 0:00:16]} 50... Kxg4 {[%clk
0:00:19.4]} 51. Rgxg6+ {[%clk 0:00:16.4]} 51... Kf3 {[%clk 0:00:20]} 52. Rge6
{[%clk 0:00:16]} 52... Rhh2 {[%clk 0:00:17.8]} 53. Nc3 {[%clk 0:00:15.3]} 53...
Rc2 {[%clk 0:00:15.9]} 54. Rec6 {[%clk 0:00:15.8]} 54... Ke3 {[%clk 0:00:15.9]}
55. a5 {[%clk 0:00:16.1]} 55... Kd4 {[%clk 0:00:16]} 56. a6 {[%clk 0:00:16.5]}
56... Rh5 {[%clk 0:00:16.1]} 57. Kb3 {[%clk 0:00:15.7]} 57... Rc1 {[%clk
0:00:15.1]} 58. Rb4+ {[%clk 0:00:14.3]} 58... Kd3 {[%clk 0:00:14.9]} 59. Rd6+
{[%clk 0:00:13.9]} 59... Ke3 {[%clk 0:00:15.1]} 60. Nd5+ {[%clk 0:00:13.7]}
60... Kf3 {[%clk 0:00:14.4]} 61. Ra4 {[%clk 0:00:13.2]} 61... Rh7 {[%clk
0:00:13.3]} 62. a7 {[%clk 0:00:13.2]} 62... Rb7+ {[%clk 0:00:13.3]} 63. Rb6
{[%clk 0:00:13.5]} 1-0

[Event "Early-Titled-Tuesday-Blitz-April-16-2024"]
[Site "Chess.com"]
[Date "2024.04.16"]
[Round "1"]
[White "le-castor-faineant"]
[Black "ansko1999"]
[Result "0-1"]
[WhiteElo "2333"]
[BlackElo "2633"]
[TimeControl "180+1"]
[EndTime "8:08:14 PDT"]
[Termination "ansko1999 won on time"]

1. e4 {[%clk 0:02:58.8]} 1... c5 {[%clk 0:02:58.9]} 2. Nf3 {[%clk 0:02:55]} 2...
Nf6 {[%clk 0:02:59.3]} 3. e5 {[%clk 0:02:50.3]} 3... Nd5 {[%clk 0:02:58.9]} 4.
c3 {[%clk 0:02:47.9]} 4... d6 {[%clk 0:02:53.6]} 5. exd6 {[%clk 0:02:44.4]} 5...
e6 {[%clk 0:02:46]} 6. d4 {[%clk 0:02:41.6]} 6... cxd4 {[%clk 0:02:44.4]} 7.
Nxd4 {[%clk 0:02:40.9]} 7... Bxd6 {[%clk 0:02:44]} 8. Be2 {[%clk 0:02:38.6]}
8... O-O {[%clk 0:02:42.4]} 9. O-O {[%clk 0:02:38.7]} 9... a6 {[%clk 0:02:33.1]}
10. Nd2 {[%clk 0:02:38.2]} 10... e5 {[%clk 0:02:31.8]} 11. N4b3 {[%clk 0:02:34]}
11... Nc6 {[%clk 0:02:28.5]} 12. Ne4 {[%clk 0:02:33]} 12... Bc7 {[%clk
0:02:24.7]} 13. c4 {[%clk 0:02:22.2]} 13... Nf4 {[%clk 0:02:21.2]} 14. Bxf4
{[%clk 0:02:18.2]} 14... exf4 {[%clk 0:02:21.8]} 15. Qxd8 {[%clk 0:02:18.3]}
15... Rxd8 {[%clk 0:02:22.7]} 16. Rfd1 {[%clk 0:02:18.1]} 16... Bf5 {[%clk
0:02:13.6]} 17. Nc3 {[%clk 0:02:16.6]} 17... Be5 {[%clk 0:02:06.5]} 18. Nc5
{[%clk 0:01:51.9]} 18... b6 {[%clk 0:01:44.8]} 19. Nd3 {[%clk 0:01:31.9]} 19...
Bxc3 {[%clk 0:01:35]} 20. bxc3 {[%clk 0:01:32.8]} 20... Bxd3 {[%clk 0:01:34.6]}
21. Bxd3 {[%clk 0:01:26.1]} 21... Ne5 {[%clk 0:01:33.2]} 22. Be2 {[%clk
0:01:20.2]} 22... Kf8 {[%clk 0:01:28.5]} 23. Rd4 {[%clk 0:01:14.4]} 23... g5
{[%clk 0:01:23.9]} 24. Rb1 {[%clk 0:01:13.5]} 24... Rab8 {[%clk 0:01:16.8]} 25.
h4 {[%clk 0:01:05.8]} 25... h6 {[%clk 0:01:16.1]} 26. hxg5 {[%clk 0:01:00.1]}
26... hxg5 {[%clk 0:01:17]} 27. Rxd8+ {[%clk 0:00:59.9]} 27... Rxd8 {[%clk
0:01:17.9]} 28. Rxb6 {[%clk 0:00:58.3]} 28... Rd2 {[%clk 0:01:18.5]} 29. Bf1
{[%clk 0:00:47.7]} 29... Rxa2 {[%clk 0:01:13.7]} 30. c5 {[%clk 0:00:47.6]} 30...
Rc2 {[%clk 0:01:11.8]} 31. Rxa6 {[%clk 0:00:32.5]} 31... Rxc3 {[%clk 0:01:11.8]}
32. Ra5 {[%clk 0:00:32.6]} 32... Rc1 {[%clk 0:00:53.8]} 33. f3 {[%clk
0:00:20.5]} 33... Nc6 {[%clk 0:00:30.9]} 34. Ra8+ {[%clk 0:00:16.3]} 34... Kg7
{[%clk 0:00:26]} 35. Kf2 {[%clk 0:00:16]} 35... Rxc5 {[%clk 0:00:24.1]} 36. Rc8
{[%clk 0:00:16.3]} 36... Rc2+ {[%clk 0:00:23.9]} 37. Kg1 {[%clk 0:00:16]} 37...
Nd4 {[%clk 0:00:19.7]} 38. Rxc2 {[%clk 0:00:16.9]} 38... Nxc2 {[%clk 0:00:20.6]}
39. Kf2 {[%clk 0:00:16.7]} 39... Kf6 {[%clk 0:00:19.8]} 40. g3 {[%clk
0:00:16.6]} 40... Ke5 {[%clk 0:00:19.4]} 41. Bc4 {[%clk 0:00:15.1]} 41... f6
{[%clk 0:00:15.5]} 42. Bf7 {[%clk 0:00:12.7]} 42... Nb4 {[%clk 0:00:13.2]} 43.
Bc4 {[%clk 0:00:09]} 43... Nc6 {[%clk 0:00:12.7]} 44. gxf4+ {[%clk 0:00:09]}
44... Kxf4 {[%clk 0:00:12.9]} 45. Bb5 {[%clk 0:00:09]} 45... Nd4 {[%clk
0:00:13.1]} 46. Be2 {[%clk 0:00:04.5]} 46... Nxe2 {[%clk 0:00:13]} 47. Kxe2
{[%clk 0:00:05.4]} 47... Kg3 {[%clk 0:00:09]} 48. Ke3 {[%clk 0:00:04.4]} 48...
f5 {[%clk 0:00:09.2]} 49. f4 {[%clk 0:00:01.3]} 49... g4 {[%clk 0:00:08.4]} 50.
Ke2 {[%clk 0:00:02.2]} 50... Kxf4 {[%clk 0:00:09.1]} 51. Kf2 {[%clk 0:00:02.4]}
51... g3+ {[%clk 0:00:09.6]} 52. Kg2 {[%clk 0:00:03.3]} 52... Kg4 {[%clk
0:00:10.1]} 53. Kf1 {[%clk 0:00:04.2]} 53... Kf3 {[%clk 0:00:10.3]} 54. Kg1
{[%clk 0:00:05.1]} 54... g2 {[%clk 0:00:10.6]} 55. Kh2 {[%clk 0:00:05.2]} 55...
Kf2 {[%clk 0:00:11.3]} 0-1